{"text_format":"1","workbook":"xlsx","n_sheets":10,"sheets":["EC et TA5.FP3 Contact","TA0.Dos du Dossier","TA0.PF1en2","TA1.plan de qualité","TA9 Planning","TA6.PF9 Pro. urgence","TA14 PV GC ","TA14 PV IS","TA II.9 Sécurité","histlog"],"not_rendered":{"charts":0,"images":11,"macros":1,"external_links":1,"defined_names":27,"comments":0,"pivot_tables":0},"unopened":[],"bounds":{"document_bytes":16777216,"sheet_cells":100000,"rows_first":2000,"rows_last":500,"rows_between":2000,"halvings":0,"cell_chars":16384,"cell_head_chars":4096},"cells_cut":0,"cells_raw":0,"read":"whole","date_system":"1900"}

{"sheet":"EC et TA5.FP3 Contact","index":0,"n_rows":94,"n_cols":34,"rows_kept":94,"cut":false,"hidden":false,"merged":[[2,1,2,9],[57,1,57,9],[4,1,4,9],[38,1,38,9],[47,1,47,9],[17,1,17,9],[28,1,28,9],[2,12,2,20],[2,23,2,31],[4,23,4,31],[17,23,17,31],[28,23,28,31],[4,12,4,20],[17,12,17,20],[68,1,68,9],[68,12,68,20],[68,23,68,31],[38,23,38,31],[28,12,28,20],[38,12,38,20],[67,1,67,9],[67,23,67,31],[67,12,67,20],[47,12,47,20],[57,12,57,20],[57,23,57,31],[47,23,47,31]]}
["Selected","N° de dossier",null,"Rue + n°",null,"Phase ","EC ",null,null,null,null,"Selected",{"$f":"+IF(B1<>\"\",B1,\"\")","v":"N° de dossier"},"","Rue + n°","","Phase ","PA",null,null,null,null,"Selected",{"$f":"+IF(M1<>\"\",M1,\"\")","v":"N° de dossier"},"","Rue + n°","","Phase ","TA",null,null,null,{"$f":"+ROW(Endrow)","v":67},"selected"]
[1,"Nom de la station",null,"Code postal et commune",null,null,null,null,null,null,null,1,"Nom de la station","","Code postal et commune","","",null,null,null,null,null,1,"Nom de la station","","Code postal et commune","",""]
[1,{"$f":"CONCATENATE(\"Achilles Fiche de projet 3 : FICHE DE CONTACTS - N° DE DOSSIER \",C1)","v":"Achilles Fiche de projet 3 : FICHE DE CONTACTS - N° DE DOSSIER "},null,null,null,null,null,null,null,null,null,1,"Achilles Fiche de projet 3 : FICHE DE CONTACTS - N° DE DOSSIER ","","","","",{"$f":"+IF(G3<>\"\",G3,\"\")","v":""},"","","",null,1,"Achilles Fiche de projet 3 : FICHE DE CONTACTS - N° DE DOSSIER ","","","","",{"$f":"+IF(R3<>\"\",R3,\"\")","v":""},"","",""]
[1,"Activité","Partie intervenante","Personne de contact","Rue + n°","Code postal-Commune","GSM","Téléphone","Fax (en option)","e-mail",null,1,"Activité","Partie intervenante","Personne de contact","Rue + n°","Code postal-Commune","GSM","Téléphone","Fax (en option)","e-mail",null,1,"Activité","Partie intervenante","Personne de contact","Rue + n°","Code postal-Commune","GSM","Téléphone","Fax (en option)","e-mail"]
["Selected","Intervenants",null,null,null,null,null,null,null,null,null,"Selected","Intervenants","","","","","","","","",null,"Selected","Intervenants","","","","","","","",""]
[1,"Maître d'ouvrage - CP","BOFAS asbl",null,"Av. Jules Bordetlaan 166 b1","1140 Evere",{"$f":"VLOOKUP(D$6,$D$84:$J$96,4,FALSE)","v":{"$error":"#N/A"}},{"$f":"VLOOKUP(D$6,$D$84:$J$96,5,FALSE)","v":{"$error":"#N/A"}},"02 788 29 99",{"$f":"VLOOKUP($D$6,$D$84:$J$96,7,FALSE)","v":{"$error":"#N/A"}},null,1,"Maître d'ouvrage - CP","BOFAS asbl",{"$f":"+IF(D6<>\"\",D6,\"\")","v":""},"Av. Jules Bordetlaan 166 b1","1140 Evere",{"$f":"VLOOKUP(O$6,$D$84:$J$96,4,FALSE)","v":{"$error":"#N/A"}},{"$f":"VLOOKUP(O$6,$D$84:$J$96,5,FALSE)","v":{"$error":"#N/A"}},"02 788 29 99",{"$f":"VLOOKUP($O$6,$D$84:$J$96,7,FALSE)","v":{"$error":"#N/A"}},null,1,"Maître d'ouvrage - CP","BOFAS asbl",{"$f":"+IF(O6<>\"\",O6,\"\")","v":""},"Av. Jules Bordetlaan 166 b1","1140 Evere",{"$f":"VLOOKUP(Z$6,$D$84:$J$96,4,FALSE)","v":{"$error":"#N/A"}},{"$f":"VLOOKUP(Z$6,$D$84:$J$96,5,FALSE)","v":{"$error":"#N/A"}},"02 788 29 99",{"$f":"VLOOKUP($Z$6,$D$84:$J$96,7,FALSE)","v":{"$error":"#N/A"}}]
[1,"Maître d'ouvrage - DT",{"$f":"+IF(C6<>\"\",C6,\"\")","v":"BOFAS asbl"},"Erik Goolaerts",{"$f":"+IF(E6<>\"\",E6,\"\")","v":"Av. Jules Bordetlaan 166 b1"},{"$f":"+IF(F6<>\"\",F6,\"\")","v":"1140 Evere"},"0497 44 73 50","02 788 29 37",{"$f":"+IF(I6<>\"\",I6,\"\")","v":"02 788 29 99"},"erik.goolaerts@bofas.be",null,1,{"$f":"+IF(B7<>\"\",B7,\"\")","v":"Maître d'ouvrage - DT"},{"$f":"+IF(N6<>\"\",N6,\"\")","v":"BOFAS asbl"},{"$f":"+IF(D7<>\"\",D7,\"\")","v":"Erik Goolaerts"},{"$f":"+IF(P6<>\"\",P6,\"\")","v":"Av. Jules Bordetlaan 166 b1"},{"$f":"+IF(Q6<>\"\",Q6,\"\")","v":"1140 Evere"},{"$f":"+IF(G7<>\"\",G7,\"\")","v":"0497 44 73 50"},"02 788 29 37",{"$f":"+IF(T6<>\"\",T6,\"\")","v":"02 788 29 99"},{"$f":"+IF(J7<>\"\",J7,\"\")","v":"erik.goolaerts@bofas.be"},null,1,{"$f":"+IF(M7<>\"\",M7,\"\")","v":"Maître d'ouvrage - DT"},{"$f":"+IF(Y6<>\"\",Y6,\"\")","v":"BOFAS asbl"},{"$f":"+IF(O7<>\"\",O7,\"\")","v":"Erik Goolaerts"},{"$f":"+IF(AA6<>\"\",AA6,\"\")","v":"Av. Jules Bordetlaan 166 b1"},{"$f":"+IF(AB6<>\"\",AB6,\"\")","v":"1140 Evere"},{"$f":"+IF(R7<>\"\",R7,\"\")","v":"0497 44 73 50"},"02 788 29 37",{"$f":"+IF(AE6<>\"\",AE6,\"\")","v":"02 788 29 99"},{"$f":"+IF(U7<>\"\",U7,\"\")","v":"erik.goolaerts@bofas.be"}]
[1,"Responsable de la communication ",{"$f":"+IF(C6<>\"\",C6,\"\")","v":"BOFAS asbl"},"Lieven Van den Bossche",{"$f":"+IF(E6<>\"\",E6,\"\")","v":"Av. Jules Bordetlaan 166 b1"},{"$f":"+IF(F6<>\"\",F6,\"\")","v":"1140 Evere"},"0494 52 82 88","02 788 29 40",{"$f":"+IF(I6<>\"\",I6,\"\")","v":"02 788 29 99"},"lieven.vandenbossche@bofas.be",null,1,"Responsable de la communication ",{"$f":"+IF(N6<>\"\",N6,\"\")","v":"BOFAS asbl"},{"$f":"+IF(D8<>\"\",D8,\"\")","v":"Lieven Van den Bossche"},{"$f":"+IF(P6<>\"\",P6,\"\")","v":"Av. Jules Bordetlaan 166 b1"},{"$f":"+IF(Q6<>\"\",Q6,\"\")","v":"1140 Evere"},"0494 52 82 88","02 788 29 40",{"$f":"+IF(T6<>\"\",T6,\"\")","v":"02 788 29 99"},{"$f":"+IF(J8<>\"\",J8,\"\")","v":"lieven.vandenbossche@bofas.be"},null,1,"Responsable de la communication ",{"$f":"+IF(Y6<>\"\",Y6,\"\")","v":"BOFAS asbl"},{"$f":"+IF(O8<>\"\",O8,\"\")","v":"Lieven Van den Bossche"},{"$f":"+IF(AA6<>\"\",AA6,\"\")","v":"Av. Jules Bordetlaan 166 b1"},{"$f":"+IF(AB6<>\"\",AB6,\"\")","v":"1140 Evere"},"0494 52 82 88","02 788 29 40",{"$f":"+IF(AE6<>\"\",AE6,\"\")","v":"02 788 29 99"},{"$f":"+IF(U8<>\"\",U8,\"\")","v":"lieven.vandenbossche@bofas.be"}]
[1,"Expert agréé en assainissement du sol - Maître d’œuvre (MO) conception - Coordinateur",null,null,null,null,null,null,null,null,null,1,"Expert agréé en assainissement du sol - Maître d’œuvre (MO) conception - Coordinateur",{"$f":"+IF(C9<>\"\",C9,\"\")","v":""},{"$f":"+IF(D9<>\"\",D9,\"\")","v":""},{"$f":"+IF(E9<>\"\",E9,\"\")","v":""},{"$f":"+IF(F9<>\"\",F9,\"\")","v":""},"","",{"$f":"+IF(I9<>\"\",I9,\"\")","v":""},{"$f":"+IF(J9<>\"\",J9,\"\")","v":""},null,1,"Expert agréé en assainissement du sol - Maître d’œuvre (MO) conception - Coordinateur",{"$f":"+IF(N9<>\"\",N9,\"\")","v":""},{"$f":"+IF(O9<>\"\",O9,\"\")","v":""},{"$f":"+IF(P9<>\"\",P9,\"\")","v":""},{"$f":"+IF(Q9<>\"\",Q9,\"\")","v":""},"","",{"$f":"+IF(T9<>\"\",T9,\"\")","v":""},{"$f":"+IF(U9<>\"\",U9,\"\")","v":""}]
[1,"Expert agréé en assainissement du sol - Maître d’œuvre (MO) conception - CP",{"$f":"+IF(C9<>\"\",C9,\"\")","v":""},null,{"$f":"+IF(E9<>\"\",E9,\"\")","v":""},{"$f":"+IF(F9<>\"\",F9,\"\")","v":""},null,null,{"$f":"+IF(I9<>\"\",I9,\"\")","v":""},null,null,1,"Expert agréé en assainissement du sol - Maître d’œuvre (MO) conception - CP",{"$f":"+IF(N9<>\"\",N9,\"\")","v":""},{"$f":"+IF(D10<>\"\",D10,\"\")","v":""},{"$f":"+IF(P9<>\"\",P9,\"\")","v":""},{"$f":"+IF(Q9<>\"\",Q9,\"\")","v":""},"","",{"$f":"+IF(T9<>\"\",T9,\"\")","v":""},{"$f":"+IF(J10<>\"\",J10,\"\")","v":""},null,1,"Expert agréé en assainissement du sol - Maître d’œuvre (MO) conception - CP",{"$f":"+IF(Y9<>\"\",Y9,\"\")","v":""},{"$f":"+IF(O10<>\"\",O10,\"\")","v":""},{"$f":"+IF(AA9<>\"\",AA9,\"\")","v":""},{"$f":"+IF(AB9<>\"\",AB9,\"\")","v":""},"","",{"$f":"+IF(AE9<>\"\",AE9,\"\")","v":""},{"$f":"+IF(U10<>\"\",U10,\"\")","v":""}]
[null,"Expert agréé en assainissement du sol - Maître d’œuvre (MO) exécution - RE",null,null,null,null,null,null,null,null,null,null,"Expert agréé en assainissement du sol - Maître d’œuvre (MO) exécution - RE",null,null,null,null,null,null,null,null,null,1,"Expert agréé en assainissement du sol - Maître d’œuvre (MO) exécution - RE",{"$f":"+IF(Y9<>\"\",Y9,\"\")","v":""},null,{"$f":"+IF(AA9<>\"\",AA9,\"\")","v":""},{"$f":"+IF(AB9<>\"\",AB9,\"\")","v":""},null,null,{"$f":"+IF(AE9<>\"\",AE9,\"\")","v":""}]
[null,"MO exécution - Entrepreneur principal EP",null,null,null,null,null,null,null,null,null,null,"MO exécution - Entrepreneur principal EP",null,null,null,null,null,null,null,null,null,1,"MO exécution - Entrepreneur principal EP"," "]
[null,"Personne de contact EP sur chantier",null,null,null,null,null,null,null,null,null,null,"Personne de contact EP sur chantier",null,null,null,null,null,null,null,null,null,1,"Personne de contact EP sur chantier",{"$f":"+IF(Y12<>\"\",Y12,\"\")","v":" "},null,{"$f":"+IF(AA12<>\"\",AA12,\"\")","v":""},{"$f":"+IF(AB12<>\"\",AB12,\"\")","v":""},null,null,{"$f":"+IF(AE12<>\"\",AE12,\"\")","v":""}]
[null,"Coordinateur sécurité projet - CS-P",null,null,null,null,null,null,null,null,null,1,"Coordinateur sécurité projet - CS-P",null,null,null,null,null,null,null,null,null,null,"Coordinateur sécurité projet - CS-P"]
[null,"Coordinateur sécurité réalisation - CS-R",null,null,null,null,null,null,null,null,null,null,"Coordinateur sécurité réalisation - CS-R",null,null,null,null,null,null,null,null,null,1,"Coordinateur sécurité réalisation - CS-R",{"$f":"+IF(Y6<>\"\",Y6,\"\")","v":"BOFAS asbl"},"","Av. Jules Bordetlaan 166 b1","1140 Evere",{"$error":"#N/A"},{"$error":"#N/A"},"02 788 29 99",{"$error":"#N/A"}]
[null,"Organisme certificateur",null,null,null,null,null,null,null,null,null,null,"Organisme certificateur",null,null,null,null,null,null,null,null,null,1,"Organisme certificateur"]
[1,null,null,null,null,null,null,null,null,null,null,1,"",null,null,null,null,null,null,null,null,null,1,""]
[1,"Propriétaires/Utilisateurs/Voisins ",null,null,null,null,null,null,null,null,null,1,"Propriétaires/Utilisateurs/Voisins ",{"$f":"+IF(C18<>\"\",C18,\"\")","v":""},"","","","","","","",null,1,"Propriétaires/Utilisateurs/Voisins ",{"$f":"+IF(N18<>\"\",N18,\"\")","v":""},"","","","","","",""]
[1,"Demandeur",null,null,null,null,null,null,null,null,null,1,"Demandeur","","","","","","","","",null,1,"Demandeur","","","","","","","",""]
[1,"Propriétaire 1",null,null,null,null,null,null,null,null,null,1,"Propriétaire 1","","","","","","","","",null,1,"Propriétaire 1","","","","","","","",""]
[1,"Propriétaire 2",null,null,null,null,null,null,null,null,null,1,"Propriétaire 2","","","","","","","","",null,1,"Propriétaire 2","","","","","","","",""]
[1,"Propriétaire 3",null,null,null,null,null,null,null,null,null,1,{"$f":"+IF(B22<>\"\",B22,\"\")","v":"Propriétaire 3"},{"$f":"+IF(C22<>\"\",C22,\"\")","v":""},{"$f":"+IF(D22<>\"\",D22,\"\")","v":""},{"$f":"+IF(E22<>\"\",E22,\"\")","v":""},{"$f":"+IF(F22<>\"\",F22,\"\")","v":""},{"$f":"+IF(G22<>\"\",G22,\"\")","v":""},{"$f":"+IF(H22<>\"\",H22,\"\")","v":""},{"$f":"+IF(I22<>\"\",I22,\"\")","v":""},{"$f":"+IF(J22<>\"\",J22,\"\")","v":""},null,1,{"$f":"+IF(M22<>\"\",M22,\"\")","v":"Propriétaire 3"},{"$f":"+IF(N22<>\"\",N22,\"\")","v":""},{"$f":"+IF(O22<>\"\",O22,\"\")","v":""},{"$f":"+IF(P22<>\"\",P22,\"\")","v":""},{"$f":"+IF(Q22<>\"\",Q22,\"\")","v":""},{"$f":"+IF(R22<>\"\",R22,\"\")","v":""},{"$f":"+IF(S22<>\"\",S22,\"\")","v":""},{"$f":"+IF(T22<>\"\",T22,\"\")","v":""},{"$f":"+IF(U22<>\"\",U22,\"\")","v":""}]
[1,"Utilisateur/Exploitant",null,null,{"$f":"E1","v":0},{"$f":"E2","v":0},null,null,null,null,null,1,"Utilisateur/Exploitant",{"$f":"+IF(C23<>\"\",C23,\"\")","v":""},"",{"$f":"+IF(E23<>\"\",E23,\"\")","v":0},{"$f":"+IF(F23<>\"\",F23,\"\")","v":0},{"$f":"+IF(G23<>\"\",G23,\"\")","v":""},"","","",null,1,"Utilisateur/Exploitant",{"$f":"+IF(N23<>\"\",N23,\"\")","v":""},"",{"$f":"+IF(P23<>\"\",P23,\"\")","v":0},{"$f":"+IF(Q23<>\"\",Q23,\"\")","v":0},{"$f":"+IF(R23<>\"\",R23,\"\")","v":""},"","",""]
[1,"Voisin 1: Parcelle:",null,null,null,null,null,null,null,null,null,1,"Voisin 1: Parcelle:","","",{"$f":"+IF(E24<>\"\",E24,\"\")","v":""},"","","","","",null,1,"Voisin 1: Parcelle:","","",{"$f":"+IF(P24<>\"\",P24,\"\")","v":""},"","","","",""]
[1,"Voisin 2: Parcelle:",null,null,null,null,null,null,null,null,null,1,"Voisin 2: Parcelle:","","","","","","","","",null,1,"Voisin 2: Parcelle:","","","","","","","",""]
[1,"Voisin 3: Parcelle:",null,null,null,null,null,null,null,null,null,1,"Voisin 3: Parcelle:","","","","","","","","",null,1,"Voisin 3: Parcelle:","","","","","","","",""]
[1,"Autres",null,null,null,null,null,null,null,null,null,1,"Autres","","","","","","","","",null,1,"Autres","","","","","","","",""]
[1,null,null,null,null,null,null,null,null,null,null,1,"",null,null,null,null,null,null,null,null,null,1,""]
[1,"Services publics",null,null,null,null,null,null,null,null,null,1,"Services publics",{"$f":"+IF(C29<>\"\",C29,\"\")","v":""},{"$f":"+IF(D29<>\"\",D29,\"\")","v":""},{"$f":"+IF(E29<>\"\",E29,\"\")","v":""},{"$f":"+IF(F29<>\"\",F29,\"\")","v":""},{"$f":"+IF(G29<>\"\",G29,\"\")","v":""},{"$f":"+IF(H29<>\"\",H29,\"\")","v":""},{"$f":"+IF(I29<>\"\",I29,\"\")","v":""},{"$f":"+IF(J29<>\"\",J29,\"\")","v":""},null,1,"Services publics",{"$f":"+IF(N29<>\"\",N29,\"\")","v":""},{"$f":"+IF(O29<>\"\",O29,\"\")","v":""},{"$f":"+IF(P29<>\"\",P29,\"\")","v":""},{"$f":"+IF(Q29<>\"\",Q29,\"\")","v":""},{"$f":"+IF(R29<>\"\",R29,\"\")","v":""},{"$f":"+IF(S29<>\"\",S29,\"\")","v":""},{"$f":"+IF(T29<>\"\",T29,\"\")","v":""},{"$f":"+IF(U29<>\"\",U29,\"\")","v":""}]
[1,"Autorité de contrôle",null,null,null,null,null,null,null,null,null,1,"Autorité de contrôle","","","","","","","","",null,1,"Autorité de contrôle","","","","","","","",""]
[null,"Contrôle des lois sociales",null,null,null,null,null,null,null,null,null,null,"Contrôle des lois sociales",null,null,null,null,null,null,null,null,null,1,"Contrôle des lois sociales"]
[null,"Contrôle du bien-être au travail",null,null,null,null,null,null,null,null,null,null,"Contrôle du bien-être au travail",null,null,null,null,null,null,null,null,null,1,"Contrôle du bien-être au travail"]
[null,"Inspection sociale",null,null,null,null,null,null,null,null,null,null,"Inspection sociale",null,null,null,null,null,null,null,null,null,1,"Inspection sociale"]
[null,"CNAC",null,null,null,null,null,null,null,null,null,null,"CNAC",null,null,null,null,null,null,null,null,null,1,"CNAC"]
[1,"Service technique - Commune",null,null,null,null,null,null,null,null,null,1,"Service technique - Commune","","","","","","","","",null,1,"Service technique - Commune","","","","","","","",""]
[1,"Voirie régionale",null,null,null,null,null,null,null,null,null,1,"Voirie régionale","","","","","","","","",null,1,"Voirie régionale","","","","","","","",""]
[1,"Autres",null,null,null,null,null,null,null,null,null,1,"Autres","","","","","","","","",null,1,"Autres","","","","","","","",""]
[1,null,null,null,null,null,null,null,null,null,null,1,"",null,null,null,null,null,null,null,null,null,1,""]
[1,"Conduites d’utilité publique (le cas écheant: forages/TA dans cette zone)",null,null,null,null,null,null,null,null,null,1,"Conduites d’utilité publique (le cas écheant: forages/TA dans cette zone)",{"$f":"+IF(C39<>\"\",C39,\"\")","v":""},"","","","","","","",null,1,"Conduites d’utilité publique (le cas écheant: forages/TA dans cette zone)",{"$f":"+IF(N39<>\"\",N39,\"\")","v":""},"","","","","","",""]
[1,"Electricité/gaz",null,null,null,null,null,null,null,null,null,1,"Electricité/gaz","","","","","","","","",null,1,"Electricité/gaz","","","","","","","",""]
[1,"Téléphonie : Belgacom",null,null,null,null,null,null,null,null,null,1,{"$f":"+IF(B41<>\"\",B41,\"\")","v":"Téléphonie : Belgacom"},"","","","","","","","",null,1,{"$f":"+IF(M41<>\"\",M41,\"\")","v":"Téléphonie : Belgacom"},"","","","","","","",""]
[1,"Eau",null,null,null,null,null,null,null,null,null,1,"Eau","","","","","","","","",null,1,"Eau","","","","","","","",""]
[1,"Egout",null,null,null,null,null,null,null,null,null,1,"Egout",{"$f":"+IF(C43<>\"\",C43,\"\")","v":""},"","","","","","","",null,1,"Egout",{"$f":"+IF(N43<>\"\",N43,\"\")","v":""},"","","","","","",""]
[1,"Cable Coax",null,null,null,null,null,null,null,null,null,1,"Cable Coax",{"$f":"+IF(C44<>\"\",C44,\"\")","v":""},"","","","","","","",null,1,"Cable Coax",{"$f":"+IF(N44<>\"\",N44,\"\")","v":""},"","","","","","",""]
[1,"Fibre de verre",null,null,null,null,null,null,null,null,null,1,"Fibre de verre","","","","","","","","",null,1,"Fibre de verre","","","","","","","",""]
[1,"Autres",null,null,null,null,null,null,null,null,null,1,"Autres","","","","","","","","",null,1,"Autres","","","","","","","",""]
[1,null,null,null,null,null,null,null,null,null,null,1,"",null,null,null,null,null,null,null,null,null,1,""]
[1,"Sous-traitants",null,null,null,null,null,null,null,null,null,1,"Sous-traitants",{"$f":"+IF(C48<>\"\",C48,\"\")","v":""},"","","","","","","",null,1,"Sous-traitants",{"$f":"+IF(N48<>\"\",N48,\"\")","v":""},"","","","","","",""]
[1,"Foreur (EC)",null,null,null,null,null,null,null,null,null,null,"Foreur (EC)",null,null,null,null,null,null,null,null,null,null,"Foreur (EC)"]
[null,"Sondages",null,null,null,null,null,null,null,null,null,1,"Sondages",null,null,null,null,null,null,null,null,null,null,"Sondages"]
[null,"Electricité",null,null,null,null,null,null,null,null,null,null,"Electricité",null,null,null,null,null,null,null,null,null,1,"Electricité"]
[null,"Travaux de démolition et de terrassement",null,null,null,null,null,null,null,null,null,null,"Travaux de démolition et de terrassement",null,null,null,null,null,null,null,null,null,1,"Travaux de démolition et de terrassement"]
[null,"Nettoyage réservoir",null,null,null,null,null,null,null,null,null,null,"Nettoyage réservoir",null,null,null,null,null,null,null,null,null,1,"Nettoyage réservoir"]
[null,"Pompage",null,null,null,null,null,null,null,null,null,null,"Pompage",null,null,null,null,null,null,null,null,null,1,"Pompage"]
[null,"Traitement des eaux",null,null,null,null,null,null,null,null,null,null,"Traitement des eaux",null,null,null,null,null,null,null,null,null,1,"Traitement des eaux"]
[null,"Autres",null,null,null,null,null,null,null,null,null,null,"Autres",null,null,null,null,null,null,null,null,null,1,"Autres"]
[1,null,null,null,null,null,null,null,null,null,null,1,"",null,null,null,null,null,null,null,null,null,1,""]
[1,"Sous-traitants (pas de travaux sur le site)",null,null,null,null,null,null,null,null,null,1,"Sous-traitants (pas de travaux sur le site)",{"$f":"+IF(C58<>\"\",C58,\"\")","v":""},"","","","","","","",null,1,"Sous-traitants (pas de travaux sur le site)",{"$f":"+IF(N58<>\"\",N58,\"\")","v":""},"","","","","","",""]
[null,"Géométrie & Expertise",null,null,null,null,null,null,null,null,null,null,"Géométrie & Expertise",null,null,null,null,null,null,null,null,null,1,"Géométrie & Expertise"]
[null,"Centre de traitement du sol",null,null,null,null,null,null,null,null,null,null,"Centre de traitement du sol",null,null,null,null,null,null,null,null,null,1,"Centre de traitement du sol"]
[null,"Destruction réservoirs",null,null,null,null,null,null,null,null,null,null,"Destruction réservoirs",null,null,null,null,null,null,null,null,null,1,"Destruction réservoirs"]
[null,"Traitement déchets industriels (eau de rinçage)",null,null,null,null,null,null,null,null,null,null,"Traitement déchets industriels (eau de rinçage)",null,null,null,null,null,null,null,null,null,1,"Traitement déchets industriels (eau de rinçage)"]
[null,"Autres",null,null,null,null,null,null,null,null,null,null,"Autres",null,null,null,null,null,null,null,null,null,1,"Autres"]
[1,null,null,null,null,null,null,null,null,null,null,1,"",null,null,null,null,null,null,null,null,null,1,""]
[1,"BBO :  Cette liste est complétée et / ou adaptée à mesure que d'autres / d'autres parties sont impliquées dans le projet.",null,null,null,null,null,null,null,null,null,1,"BBO :  Cette liste est complétée et / ou adaptée à mesure que d'autres / d'autres parties sont impliquées dans le projet.",null,null,null,null,null,null,null,null,null,1,"BBO :  Cette liste est complétée et / ou adaptée à mesure que d'autres / d'autres parties sont impliquées dans le projet."]
[1,"BSP/BSW : Cette liste est reprise dans le journal de coordination qui sera complété lorsque des parties complémentaires viennent s'impliquer dans la réalisation de la construction. ",null,null,null,null,null,null,null,null,null,1,"BSP/BSW : Cette liste est reprise dans le journal de coordination qui sera complété lorsque des parties complémentaires viennent s'impliquer dans la réalisation de la construction. ",null,null,null,null,null,null,null,null,null,1,"BSP/BSW : Cette liste est reprise dans le journal de coordination qui sera complété lorsque des parties complémentaires viennent s'impliquer dans la réalisation de la construction. "]
[1,"BSW : Pour plus de détails concernant les responsables des entrepreneurs principaux et des sous-traitants, nous renvoyons à la charte SSE.",null,null,null,null,null,null,null,null,null,1,"BSW : Pour plus de détails concernant les responsables des entrepreneurs principaux et des sous-traitants, nous renvoyons à la charte SSE.",null,null,null,null,null,null,null,null,null,1,"BSW : Pour plus de détails concernant les responsables des entrepreneurs principaux et des sous-traitants, nous renvoyons à la charte SSE."]
[null,"Privacy Policy: BOFAS s'engage à traiter les données personnelles qui ont été reçues dans le cadre de la demande conformément à la législation applicable au traitement des données personnelles et en particulier au Règlement Général sur la Protection des Données (2016/679), ci-après dénommé \"RGPD\", et à se fournir mutuellement assistance et soutien si nécessaire afin de pouvoir remplir leurs obligations dans le cadre du RGPD. Les notions qui ne sont pas définies dans la présente disposition ont la signification qui leur est donnée dans le RGPD. Pour plus d'informations sur la politique de confidentialité, veuillez consulter le site www.bofas.be.",null,null,null,null,null,null,null,null,null,null,"Privacy Policy: BOFAS s'engage à traiter les données personnelles qui ont été reçues dans le cadre de la demande conformément à la législation applicable au traitement des données personnelles et en particulier au Règlement Général sur la Protection des Données (2016/679), ci-après dénommé \"RGPD\", et à se fournir mutuellement assistance et soutien si nécessaire afin de pouvoir remplir leurs obligations dans le cadre du RGPD. Les notions qui ne sont pas définies dans la présente disposition ont la signification qui leur est donnée dans le RGPD. Pour plus d'informations sur la politique de confidentialité, veuillez consulter le site www.bofas.be.",null,null,null,null,null,null,null,null,null,null,"Privacy Policy: BOFAS s'engage à traiter les données personnelles qui ont été reçues dans le cadre de la demande conformément à la législation applicable au traitement des données personnelles et en particulier au Règlement Général sur la Protection des Données (2016/679), ci-après dénommé \"RGPD\", et à se fournir mutuellement assistance et soutien si nécessaire afin de pouvoir remplir leurs obligations dans le cadre du RGPD. Les notions qui ne sont pas définies dans la présente disposition ont la signification qui leur est donnée dans le RGPD. Pour plus d'informations sur la politique de confidentialité, veuillez consulter le site www.bofas.be."]
[null,"Comment ajouter des lignes: d'abord \"déprotéger\" l'onglet (pas de mot de passe), puis cliquez sur le bouton \"VIEW ALL\". La ligne appropriée peut maintenant être copiée et ajoutée à l'endroit souhaité en cliquant sur le bouton droit et \"insert copied cells\". Si vous n'utilisez pas \"VIEW ALL\",  la ligne copiée ne peut pas être ajoutée via \"insert copied cells\" et ne sera visible que dans la phase visible (EC, PA ou TA)! Les colonnes ne peuvent pas être supprimées ou ajoutées!",null,null,null,null,null,null,null,null,null,null,{"$f":"+IF(B69<>\"\",B69,\"\")","v":"Comment ajouter des lignes: d'abord \"déprotéger\" l'onglet (pas de mot de passe), puis cliquez sur le bouton \"VIEW ALL\". La ligne appropriée peut maintenant être copiée et ajoutée à l'endroit souhaité en cliquant sur le bouton droit et \"insert copied cells\". Si vous n'utilisez pas \"VIEW ALL\",  la ligne copiée ne peut pas être ajoutée via \"insert copied cells\" et ne sera visible que dans la phase visible (EC, PA ou TA)! Les colonnes ne peuvent pas être supprimées ou ajoutées!"},null,null,null,null,null,null,null,null,null,null,{"$f":"+IF(M69<>\"\",M69,\"\")","v":"Comment ajouter des lignes: d'abord \"déprotéger\" l'onglet (pas de mot de passe), puis cliquez sur le bouton \"VIEW ALL\". La ligne appropriée peut maintenant être copiée et ajoutée à l'endroit souhaité en cliquant sur le bouton droit et \"insert copied cells\". Si vous n'utilisez pas \"VIEW ALL\",  la ligne copiée ne peut pas être ajoutée via \"insert copied cells\" et ne sera visible que dans la phase visible (EC, PA ou TA)! Les colonnes ne peuvent pas être supprimées ou ajoutées!"}]
[]
[null,"Veuillez copier ci-dessous les données de contact qui ne sont plus d'application. La ligne originale peut ensuite être adaptée à la situation présente.",null,null,null,null,null,null,null,null,null,null,{"$f":"+IF(B71<>\"\",B71,\"\")","v":"Veuillez copier ci-dessous les données de contact qui ne sont plus d'application. La ligne originale peut ensuite être adaptée à la situation présente."},null,null,null,null,null,null,null,null,null,null,{"$f":"+IF(M71<>\"\",M71,\"\")","v":"Veuillez copier ci-dessous les données de contact qui ne sont plus d'application. La ligne originale peut ensuite être adaptée à la situation présente."}]
[]
["fase","Activité","Partie intervenante","Personne de contact","Rue + n°","Code postal-Commune","GSM","Téléphone","Fax","e-mail",null,"fase",{"$f":"+IF(B73<>\"\",B73,\"\")","v":"Activité"},"Partie intervenante","Personne de contact","Rue + n°","Code postal-Commune","GSM","Téléphone","Fax","e-mail",null,"fase",{"$f":"+IF(M73<>\"\",M73,\"\")","v":"Activité"},"Partie intervenante","Personne de contact","Rue + n°","Code postal-Commune","GSM","Téléphone","Fax","e-mail"]
[]
[]
[]
[]
[]
[]
[]
[]
[]
[]
[null,null,null,"Gert Moerenhout",null,null,"0494 52 82 90","02 788 29 22",null,"gert.moerenhout@bofas.be"]
[null,null,null,"Katrien Achten",null,null,"0494 52 82 95","02 788 29 07",null,"katrien.achten@bofas.be"]
[null,null,null,"Kris Vandijck",null,null,"0494 52 82 92","02 788 29 27",null,"kris.vandijck@bofas.be"]
[null,null,null,"Leen Vandenbussche",null,null,"0491 71 61 95","02 788 29 25",null,"leen.vandenbussche@bofas.be"]
[null,null,null,"Luc Goolaerts",null,null,"0497 34 54 67","02 788 29 35",null,"luc.goolaerts@bofas.be"]
[null,null,null,"Pierre Bourguignon",null,null,"0494 52 82 94","02 788 29 24",null,"pierre.bourguignon@bofas.be"]
[null,null,null,"Sven Van Daele",null,null,"0494 52 82 93","02 788 29 28",null,"sven.vandaele@bofas.be"]
[null,null,null,"Sylvie Posel",null,null,"0494 52 23 90","02 788 29 23",null,"sylvie.posel@bofas.be"]
[null,null,null,"Thomas Laloux",null,null,"0494 52 23 91","02 788 29 38",null,"thomas.laloux@bofas.be"]
[null,null,null,"Yves Van Malderen",null,null,"0496 52 23 49","02 788 29 26",null,"yves.vanmalderen@bofas.be"]
[null,null,null,"Yvon Vermoortel",null,null,"0494 52 23 86","02 788 29 39",null,"yvon.vermoortel@bofas.be"]

{"sheet":"TA0.Dos du Dossier","index":1,"n_rows":10,"n_cols":2,"rows_kept":10,"cut":false,"hidden":false,"merged":[[7,0,7,2]]}
[]
[null,"HSE"]
[null,"Farde de chantier"]
[]
[]
[null,{"$f":"CONCATENATE(\"Dossier: \",'EC et TA5.FP3 Contact'!$Y$1)","v":"Dossier: "}]
[]
[{"$f":"CONCATENATE('EC et TA5.FP3 Contact'!$Y$2,\", \",'EC et TA5.FP3 Contact'!$AA$1,\" à \",'EC et TA5.FP3 Contact'!$AA$2,\"\")","v":",  à "}]
[]
[null,"Maître d'oeuvre:"]

{"sheet":"TA0.PF1en2","index":2,"n_rows":59,"n_cols":8,"rows_kept":59,"cut":false,"hidden":false,"merged":[[55,0,56,0],[55,7,56,7],[30,0,34,0],[31,7,34,7],[39,0,51,0],[39,7,51,7],[52,0,53,0],[52,7,53,7],[14,0,18,0],[14,7,18,7],[22,0,23,0],[22,7,23,7],[25,0,27,0],[25,7,27,7],[8,0,10,0],[8,7,10,7],[0,0,0,7],[1,0,1,7],[2,0,2,7],[5,0,6,0],[5,7,6,7]]}
["FARDE DE CHANTIER QSSE\n(utilisable comme fiches de projet Achilles 1 & 2: Informations générales et du chantier)"]
[{"$f":"CONCATENATE(\"MAITRE D'OUVRAGE: \",'EC et TA5.FP3 Contact'!$Y$6,\"                 N° de dossier: \",  'EC et TA5.FP3 Contact'!$Y$1)","v":"MAITRE D'OUVRAGE: BOFAS asbl                 N° de dossier: "}]
[{"$f":"CONCATENATE('EC et TA5.FP3 Contact'!$Y$2,\" , \",'EC et TA5.FP3 Contact'!$AA$1,\" à \",'EC et TA5.FP3 Contact'!$AA$2)","v":" ,  à "}]
[]
[null,"DOCUMENTS PROJETS","Général\nSITE Internet\nwww.bofas.be","Adjudication\nSITE TENDERS\n tenders.bofas.be","Kick-off\nFarde Chantier \nvia BOFAS","Réalisation GC&IS\nFarde de chantier / \ne-mail / A afficher / SG*","Document\nconforme\nà la date","Paraphe \nSuperviseur"]
[1,"Plan de qualité","T1240","EAAS","BOF",null,null,"EAAS"]
[null,"Déclaration de politique BOFAS et entrepreneur principal","T0030-31",null,"BOF","A afficher"]
[2,"Cahier des charges spécifique au projet, métrés, figures, annexes","T5100 & T3320","EAAS","BOF",null,null,"EAAS"]
[3,"EO, EDS",null,"BOF ou EAAS","―",null,"-","EAAS"]
[null,"Projet d’assainissement des sols",null,"EAAS","BOF"]
[null,"Déclaration de conformité du PA et autres permis, si non repris sur le SITE TENDERS",null,null,"BOF","A afficher"]
[4,"Attestation de vidange des réservoirs par le demandeur ou convention avec le demandeur",null,"BOF","BOF",null,null,"EAAS"]
[null,"PLAN DE SECURITE ET DE SANTE (PSS)"]
[5,"fiche de contacts (Fiche de Projet Achilles 3)","T1240","EAAS","BOF","e-mail + A afficher",null,"EAAS"]
[6,"Plan Sécurité et Santé spécifique au projet","T4420","CS","BOF","CS (farde de chantier)",null,"CS"]
[null,"Plan HSE général pour le démantèlement et assainissement du sol","T4410",null,"BOF"]
[null,"Plan d’aménagement du chantier et de signalisation  ","T5100","CS","―","e-mail + A afficher"]
[null,"Procédure d’urgence (Fiche de Projet Achilles 9)","T1240","CS","―","e-mail + A afficher"]
[null,"Règlement de chantier (si établi par l'entrepreneur principal)",null,null,null,"e-mail + A afficher"]
[7,"Fiches de données de sécurité des produits dangereux","T5910","CS","BOF","Farde de chantier",null,"CS"]
[8,"Chartes SSE et analyses de risques","pour info T5205",null,null,"Farde de chantier",null,"CS"]
[null,"JOURNAL DE COORDINATION (JC)"]
[9,"Journal des travaux, liste des participants","T5620",null,"BOF","Farde de chantier",null,"EAAS"]
[null,"Planning","T1240","CS","―","e-mail + A afficher"]
[10,"Comptes rendus des réunions de chantier","T4040-41",null,null,"Farde de chantier",null,"EAAS"]
[11,"Certificats de contrôle des équipement de travail (mise en service, périodique)",null,null,null,"Avec l'équipement",null,"CS"]
[null,"Rapports des visites de sécurité ou réunions de sécurité    ","T1240",null,null,"CS (farde de chantier)"]
[null,"Enregistrement des remarques entrepreneurs + suites, courrier",null,"CS","BOF","CS (e-mail)"]
[12,"Avis d’incidents et d’accidents   ","T5285",null,null,"e-mail + Farde chantier",null,"CS"]
[null,"DOSSIER D’INTERVENTION ULTERIEURE (DIU)"]
[13,"DIU spécifique au projet","T8200","CS","BOF","CS (farde de chantier)",null,"CS"]
[null,"Plan as-built",null,null,null,"Farde de chantier",null,"EAAS"]
[null,"Attestation et certificats pour le rapport d'assainissement",null,null,null,"Farde de chantier"]
[null,"Fiches techniques, rapports de controle des matériaux livrés (autres que du rapport d'assainissement et STEP)",null,null,null,"Farde de chantier"]
[null,"Rapport des essais à la plaque réalisés",null,null,null,"Farde de chantier"]
[14,"Procès-verbal de réception provisoire","T1240",null,"BOF","BOF (farde de chantier)",null,"BOF"]
[15,"Procès-verbal de remise des instruments de coordination","T4902",null,"BOF","CS (farde de chantier)",null,"BOF"]
[null,"DOCUMENTS DE REALISATION"]
[16,"Documents d’accompagnement de transport ",null,null,"BOF","Farde de chantier",null,"EAAS"]
[17,"Notification préalable du chantier",null,"www.socialsecurity.be",null,"e-mail + A afficher",null,"EAAS"]
[null,"Permis de signalisation",null,null,null,"e-mail + A afficher"]
[null,"Permis de travail BOFAS","T5020-21",null,null,"A afficher/farde de chantier"]
[null,"Certificat d’assurance",null,null,null,"e-mail"]
[null,"Fiches de projets Achilles (fiches 4-8, 10-15)","pour info T5230-68",null,null,"e-mail + SG"]
[null,"Plan de traçabilité de terres et note de stabilité",null,null,null,"e-mail + SG"]
[null,"Plan de pompage, fiches techique et liste de contrôle STEP",null,null,null,"e-mail + SG"]
[null,"Plan de levage",null,null,null,"e-mail + SG"]
[null,"Plans conduites d'utilité publique",null,null,null,"SG"]
[null,"Rapports des formations et toolboxmeetings",null,null,null,"SG"]
[null,"Inventaire des moyens de secours et de préventions ","pour info T5275",null,null,"SG"]
[null,"Liste de vie des appareils, registre Produits Dangereux",null,null,null,"SG"]
[null,"Note de calcul CAE par EAAS",null,null,null,"SG"]
[18,"Etat des lieux avant travaux  ",null,null,null,"e-mail ou farde de chantier",null,"EAAS"]
[null,"Etat des lieux après travaux  ",null,null,null,"e-mail ou farde de chantier"]
[null,"MONITORING EN RAPPORTAGE"]
[19,"Rapport d'assainissement, rapport intermédiaire ou monitoring",null,null,null,"EAAS",null,"BOF"]
[null,"Etat des lieux final et déclaration de conformité",null,null,null,"EAAS"]
[]
[null,"* SG: Système de Gestion Achilles  pour la sécurité, la santé et l'environnement pour des travaux d'assainissement sur site"]

{"sheet":"TA1.plan de qualité","index":3,"n_rows":120,"n_cols":16,"rows_kept":120,"cut":false,"hidden":false,"merged":[[106,0,106,5],[102,3,102,4],[68,0,68,5],[116,1,116,5],[119,0,119,5],[111,2,111,5],[113,0,113,5],[114,0,114,2],[114,3,114,5],[115,0,115,2],[115,3,115,5],[97,3,97,4],[107,0,107,1],[107,2,107,5],[108,2,108,5],[109,2,109,5],[110,2,110,5],[98,3,98,4],[99,3,99,4],[100,3,100,4],[101,3,101,4],[89,0,89,2],[89,3,89,5],[90,0,90,5],[91,3,91,4],[105,3,105,4],[92,3,92,4],[93,3,93,4],[94,3,94,4],[95,3,95,4],[96,3,96,4],[86,0,86,2],[86,3,86,5],[87,0,87,2],[87,3,87,5],[88,0,88,2],[88,3,88,5],[83,0,83,2],[83,3,83,5],[84,0,84,2],[84,3,84,5],[85,0,85,2],[85,3,85,5],[80,0,80,2],[80,3,80,5],[81,0,81,2],[81,3,81,5],[82,0,82,2],[82,3,82,5],[76,0,76,5],[77,0,77,2],[77,3,77,5],[78,0,78,2],[78,3,78,5],[79,0,79,2],[79,3,79,5],[69,5,70,5],[70,0,70,4],[71,0,71,4],[71,5,72,5],[72,0,72,4],[73,5,74,5],[61,3,61,4],[62,3,62,4],[63,3,63,4],[64,3,64,4],[65,3,65,4],[69,0,69,4],[54,1,54,5],[56,0,56,4],[58,0,58,5],[59,3,59,4],[60,3,60,4],[46,1,46,5],[49,1,49,5],[50,1,50,5],[51,1,51,5],[52,1,52,5],[53,1,53,5],[40,1,40,5],[41,1,41,5],[42,1,42,5],[43,1,43,5],[44,1,44,5],[45,1,45,5],[32,1,32,5],[34,1,34,5],[35,1,35,5],[36,1,36,5],[37,1,37,5],[38,1,38,5],[26,1,26,5],[27,1,27,5],[28,1,28,5],[29,1,29,5],[30,1,30,5],[31,1,31,5],[19,0,19,2],[19,3,19,5],[21,0,21,5],[22,0,22,5],[23,0,23,5],[25,0,25,5],[15,0,15,5],[16,0,16,2],[16,3,16,5],[17,0,17,2],[17,3,17,5],[18,0,18,2],[18,3,18,5],[7,1,7,5],[8,1,8,5],[10,0,10,5],[11,1,11,5],[12,1,12,5],[14,0,14,5],[0,0,0,5],[1,1,1,5],[3,0,3,5],[4,1,4,5],[5,1,5,5],[6,1,6,5]]}
["PLAN DE QUALITE"]
["N° de dossier BOFAS",{"$f":"'EC et TA5.FP3 Contact'!$Y$1","v":""}]
[]
["IDENTIFICATION DU PROJET D'ASSAINISSEMENT DU SOL "]
["N° de dossier pour les autorités DAS / BE :"]
["Titre du projet d'assainissement du sol: "]
["Date du projet d'assainissement du sol:"]
["N° attestation de conformité:"]
["Lieu travaux projet d'assainissement du sol:",{"$f":"CONCATENATE('EC et TA5.FP3 Contact'!$AA$1,\" à \",'EC et TA5.FP3 Contact'!$AA$2,\" \")","v":" à  "}]
[]
["REUNION DE DEMARRAGE"]
["Date et heure réunion de démarrage","00:00:00"]
["Lieu réunion de démarrage:",{"$f":"+$B$9","v":" à  "}]
[]
["ACHILLES "]
["Les certificats suivants sont nécessaires",null,null,null,null,null,null,null,null,null,null,"Choix"]
["Certificat 1 Travaux standards"]
["Certificat 2 Assainissements in-situ complexes ",null,null,null,null,null,null,null,null,null,null,"Oui"]
["Certificat 3 Techniques de traitement on-site",null,null,null,null,null,null,null,null,null,null,"Non"]
["Certificat 4 Techniques exceptionnelles ou spéciales",null,null,null,null,null,null,null,null,null,null,"Non applicable"]
[]
["APERCU DONNEES ENVIRONNEMENTALES"]
["Brève description des travaux d'assainissement du sol  "]
[]
[]
["PARTIES CONCERNEES (liste de contacts en annexe)"]
["MAITRE D'OUVRAGE"]
["Nom maître d'ouvrage:",{"$f":"'EC et TA5.FP3 Contact'!$Y$6","v":"BOFAS asbl"}]
["Nom personne de contact:",{"$f":"'EC et TA5.FP3 Contact'!$Z$6","v":""}]
["Adresse:",{"$f":"CONCATENATE('EC et TA5.FP3 Contact'!$AA$6,\" à \",'EC et TA5.FP3 Contact'!$AB$6)","v":"Av. Jules Bordetlaan 166 b1 à 1140 Evere"}]
["Téléphone:",{"$f":"'EC et TA5.FP3 Contact'!$AD$6","v":{"$error":"#N/A"}}]
["GSM:",{"$f":"+'EC et TA5.FP3 Contact'!$AC$6","v":{"$error":"#N/A"}}]
["e-mail:",{"$f":"+'EC et TA5.FP3 Contact'!$AF$6","v":{"$error":"#N/A"}}]
[]
["AUTORITES DAS / BE"]
["Nom responsable du dossier:",{"$f":"'EC et TA5.FP3 Contact'!$Z$30","v":""}]
["Adresse:",{"$f":"CONCATENATE('EC et TA5.FP3 Contact'!$AA$30,\" à \",'EC et TA5.FP3 Contact'!$AB$30)","v":" à "}]
["Téléphone:",{"$f":"'EC et TA5.FP3 Contact'!$AD$30","v":""}]
["e-mail:",{"$f":"'EC et TA5.FP3 Contact'!$AF$30","v":""}]
[]
["EXPERT AGREE EN ASSAINISSEMENT DU SOL"]
["Nom expert en assainissement du sol:",{"$f":"'EC et TA5.FP3 Contact'!$Y$11","v":""}]
["Nom personne de contact:",{"$f":"'EC et TA5.FP3 Contact'!$Z$11","v":0}]
["Adresse:",{"$f":"CONCATENATE('EC et TA5.FP3 Contact'!$AA$11,\" à \",'EC et TA5.FP3 Contact'!$AB$11)","v":" à "}]
["Téléphone:",{"$f":"'EC et TA5.FP3 Contact'!$AD$11","v":0}]
["GSM:",{"$f":"'EC et TA5.FP3 Contact'!$AC$11","v":0}]
["e-mail:",{"$f":"'EC et TA5.FP3 Contact'!$AF$11","v":0}]
[]
["ENTREPRENEUR EN ASSAINISSEMENT DU SOL "]
["Nom entrepreneur en assainissement:",{"$f":"'EC et TA5.FP3 Contact'!$Y$12","v":" "}]
["Nom personne de contact:",{"$f":"'EC et TA5.FP3 Contact'!$Z$12","v":0}]
["Adresse:",{"$f":"CONCATENATE('EC et TA5.FP3 Contact'!$AA$12,\" à \",'EC et TA5.FP3 Contact'!$AB$12)","v":" à "}]
["Téléphone:",{"$f":"'EC et TA5.FP3 Contact'!$AD$12","v":0}]
["GSM:",{"$f":"'EC et TA5.FP3 Contact'!$AC$12","v":0}]
["e-mail:",{"$f":"'EC et TA5.FP3 Contact'!$AF$12","v":0}]
["Entrepreneur principal / sous-traitant",null,null,null,null,"Entrepreneur principal",null,null,null,null,null,"Entrepreneur principal"]
["Est-ce que cette entreprise travaille selon le système de prévention Achilles?",null,null,null,null,null,null,null,null,null,null,"Sous-traitant"]
[]
["CONCEPT D'ASSAINISSEMENT"]
["Concept",null,"Réalisation","Date de début",null,"Date de fin",null,null,null,null,null,"Concepts d'assainissement possible pour les dossiers BOFAS",null,"Réalisation",null,"Liste des matériaux traités possible pour les dossiers BOFAS"]
["Assainissement du sol : traitement off-site",null,"Standard",null,null,null,null,null,null,null,null,"Assainissement du sol : traitement off-site",null,"Standard",null,"Air du sol : air du sol extrait (Nm³)"]
["Assainissement de l'eau : extraction d'eau souterraine",null,"Standard",null,null,null,null,null,null,null,null,"Assainissement du sol : mise en décharge off-site",null,"Complexe",null,"Air du sol : air du sol traité - rejeté (Nm³)"]
["Assainissement in-situ : extraction air du sol",null,"Standard",null,null,null,null,null,null,null,null,"Assainissement du sol : andains on-site",null,"On-site",null,"Air (comprimé) injecté (Nm³)"]
["Assainissement du sol : traitement off-site",null,"Standard",null,null,null,null,null,null,null,null,"Assainissement du sol : excavation - traitement on-site reiniging - Biologique",null,"Exceptionnel",null,"Eau souterraine : eau souterraine pompée (m³)"]
[null,null,null,null,null,null,null,null,null,null,null,"Assainissement de l'eau : extraction d'eau souterraine",null,null,null,"Eau souterraine : traitée - infiltrée (m³)"]
[null,null,null,null,null,null,null,null,null,null,null,"Assainissement in-situ : biosparging",null,null,null,"Eau souterraine : traitée - rejetée dans les eaux de surface (m³)"]
["Tableau du planning en annexe?",null,null,null,null,null,null,null,null,null,null,"Assainissement in-situ : bioventing",null,null,null,"Eau souterraine : traitée - rejetée dans les égouts (m³)"]
[null,null,null,null,null,null,null,null,null,null,null,"Assainissement in-situ : oxydation chimique",null,null,null,"Sol excavé : sol excavé (tonne)"]
["CONFORMITE DU CAHIER DES CHARGES AVEC LE PROJET D'ASSAINISSEMENT DU SOL ET L'APPROBATION ",null,null,null,null,null,null,null,null,null,null,"Assainissement in-situ : cellules de recirculation d'eau souterraine",null,null,null,"Sol excavé : traité - évacué vers une décharge (tonne)"]
["Est-ce que le cahier des charges des travaux d'assainissement du sol répond, en termes de conformité",null,null,null,null,null,null,null,null,null,null,"Assainissement in-situ : injection d'air comprimé",null,null,null,"Sol excavé : traité - évacué vers TOP (tonne)"]
["et d'exhaustivité, au projet d'assainissement du sol et à l'approbation du projet d'assainissement?",null,null,null,null,null,null,null,null,null,null,"Assainissement in-situ : écran réactif",null,null,null,"Sol excavé : traité - réutilisé sur place (tonne)"]
["Description des points où le cahier des charges s'écarte du projet d'assainissement ",null,null,null,null,null,null,null,null,null,null,"Assainissement in-situ : extraction air du sol",null,null,null,"Sol excavé : traité - off-site - biologique (tonne)"]
["du sol et de l'attestation de conformité.",null,null,null,null,null,null,null,null,null,null,"Assainissement in-situ : élimination de couche flottante par sorption ou écrémage",null,null,null,"Sol excavé : traité - off-site - physico-chimique (tonne)"]
["Est-ce que le cahier des charges comprend des activités non autorisées par le projet ",null,null,null,null,null,null,null,null,null,null,"Assainissement in-situ : atténuation naturelle stimulée - autre",null,null,null,"Sol excavé : traité - off-site - physico-chimique (tonne)"]
["d'assainissement du sol déclaré conforme et par l'approbation du projet d'assainissement?",null,null,null,null,null,null,null,null,null,null,"Assainissement in-situ : extraction multiphase",null,null,null,"Sol excavé : traité - on-site andains (tonne)"]
[null,null,null,null,null,null,null,null,null,null,null,"Assainissement in-situ : atténuation naturelle",null,null,null,"Charbon actif utilisé (kg)"]
["TRAITEMENT DES MATERIAUX EXTRAITS",null,null,null,null,null,null,null,null,null,null,"Confinement : génie civil",null,null,null,"Produit d'injection utilisé (kg of L)"]
["Description",null,null,"Quantité prévue",null,null,null,null,null,null,null,"Confinement : géohydrologique",null,null,null,"Produit pur traité (kg)"]
["Tanks de stockage évacués",null,null,null,null,null,null,null,null,null,null,"Monitoring (uniquement)",null,null,null,"Tanks de stockage évacués"]
["Sol excavé : traité - off-site - biologique (tonne)"]
["Eau souterraine : eau souterraine pompée (m³)"]
["Eau souterraine : traitée - rejetée dans les eaux de surface (m³)"]
["Air du sol : air du sol extrait (Nm³)"]
["Air du sol : air du sol traité - rejeté (Nm³)"]
["Charbon actif utilisé (kg)"]
[]
[]
[]
[]
[]
["APERCU DES VALEURS SEUIL / VALEURS D'ASSAINISSEMENT"]
["Médium","unité","paramètres","valeur initiale max.",null,"valeur prévue"]
["Sol","mg/kg ms","huile minérale"]
["Sol","mg/kg ms","benzène"]
["Sol","mg/kg ms","toluène"]
["Sol","mg/kg ms","éthylbenzène"]
["Sol","mg/kg ms","xylènes"]
[]
["Eau souterraine","µg/l","huile minérale"]
["Eau souterraine","µg/l","benzène"]
["Eau souterraine","µg/l","toluène"]
["Eau souterraine","µg/l","éthylbenzène"]
["Eau souterraine","µg/l","xylènes"]
["Eau souterraine","µg/l","MTBE"]
[]
[]
["APERCU DES NORMES D'EMISSION (y compris point de rejet)"]
["Norme de rejet",null,"Normes d'émission air :"]
["Huile minérale: 500 µg/l;",null,"Benzène: 5 mg/Nm³ pour >= 25 g/h"]
["BTEX-total: 20 µg/l;",null,"Ethylbenzène: 100 mg/Nm³ pour >= 2 kg/h"]
["BTEX-individuel: 10 µg/l;",null,"Toluène: 100 mg/Nm³ pour >= 2 kg/h"]
["MTBE: 100 µg/l.",null,"Xylènes: 100 mg/Nm³ pour >=  2kg/h"]
[]
["APPROBATION PLAN DE QUALITE MAITRE D'OUVRAGE"]
["Date de téléchargement du plan qualité par l'expert en assainissement des sols:"]
["Date : "]
["Nom :",{"$f":"IF(OG_naamcontact<>\"\",OG_naamcontact&\", \"&OG_naam,\"\")","v":""}]
["Signature : "]
[]
["Privacy Policy: BOFAS s'engage à traiter les données personnelles qui ont été reçues dans le cadre de la demande conformément à la législation applicable au traitement des données personnelles et en particulier au Règlement Général sur la Protection des Données (2016/679), ci-après dénommé \"RGPD\", et à se fournir mutuellement assistance et soutien si nécessaire afin de pouvoir remplir leurs obligations dans le cadre du RGPD. Les notions qui ne sont pas définies dans la présente disposition ont la signification qui leur est donnée dans le RGPD. Pour plus d'informations sur la politique de confidentialité, veuillez consulter le site www.bofas.be."]

{"sheet":"TA9 Planning","index":4,"n_rows":26,"n_cols":5,"rows_kept":26,"cut":false,"hidden":false,"merged":[[2,1,2,4],[3,1,3,4],[4,1,4,4],[1,1,1,4]]}
[]
[null,"PLANNING TRAVAUX D'ASSAINISSEMENT DU SOL"]
[null,{"$f":"CONCATENATE(\"MAITRE D'OUVRAGE: \",'EC et TA5.FP3 Contact'!$Y$6,\"                 N° de dossier: \",'EC et TA5.FP3 Contact'!$Y$1)","v":"MAITRE D'OUVRAGE: BOFAS asbl                 N° de dossier: "}]
[null,{"$f":"+'EC et TA5.FP3 Contact'!$Y$2","v":""}]
[null,{"$f":"CONCATENATE('EC et TA5.FP3 Contact'!$AA$1,\" à \",'EC et TA5.FP3 Contact'!$AA$2,\" \")","v":" à  "}]
[null,"Description (indicatief et non-contraignant)","Durée (semaine)","Début ","Fin"]
[null,"Réunion de démarrage",0,"2020-01-01",{"$f":"+D7+C7*7","v":"2020-01-01"}]
[null,"Travaux de génie civil "]
[null,"- aménagement du chantier et travaux de démolition ",1,{"$f":"+E7+14","v":"2020-01-15"},{"$f":"+D9+C9*7","v":"2020-01-22"}]
[null,"- travaux de terrassement et de rabattement",2,{"$f":"+E9","v":"2020-01-22"},{"$f":"+D10+C10*7","v":"2020-02-05"}]
[null,"- pose d'une infrastructure in situ souterraine",1,{"$f":"+E10","v":"2020-02-05"},"2020-02-12"]
[null,"- réparation voiries ",1,{"$f":"+E11","v":"2020-02-12"},"2020-02-19"]
[]
[null,"Techniques In-situ "]
[null,"- traitement eau souterraine lors du rabattement",{"$f":"+C10","v":2},{"$f":"+D10","v":"2020-01-22"},"2020-02-05"]
[null,"- pose d'une installation in situ en surface ",1,{"$f":"+E12","v":"2020-02-19"},"2020-02-26"]
[null,"- extraction d'air",78,{"$f":"+E16","v":"2020-02-26"},"2021-08-25"]
[]
[null,"Monitoring de l'eau souterraine",104,{"$f":"E17","v":"2021-08-25"},{"$f":"+D19+C19*7","v":"2023-08-23"}]
[]
[null,"Remarques: "]
[null,"- planning à établir et à joindre au plan de qualité par EAAS dans la phase de rédaction du cahier des charges "]
[null,"- planning détaillé à établir par l'entrepreneur avant le début des travaux à l'aide de son système de planning "]
[]
[null,"pour insérer une ligne: clique sur 'insert' --> 'rows'"]
[null,"pour effacer une ligne: sélectionne la ligne et clique à droite --> 'delete' --> 'entire rows'"]

{"sheet":"TA6.PF9 Pro. urgence","index":5,"n_rows":31,"n_cols":6,"rows_kept":31,"cut":false,"hidden":false,"merged":[[27,1,27,5],[15,2,15,3],[30,1,30,5],[29,1,29,5],[20,3,20,4],[21,3,21,4],[22,3,22,4],[28,1,28,5],[24,2,24,3],[20,1,20,2],[21,1,21,2],[22,1,22,2],[25,2,25,3],[26,1,26,5],[23,1,23,2],[12,5,18,5],[12,2,12,3],[19,1,19,2],[18,2,18,3],[14,2,14,3],[1,1,1,3],[9,1,9,5],[10,1,10,5],[13,4,18,4],[6,1,6,5],[8,1,8,5],[16,2,16,3],[11,1,11,3],[11,4,11,5],[13,2,13,3],[17,2,17,3]]}
[]
[null,"Maître d'ouvrage:",null,null,{"$f":"+'EC et TA5.FP3 Contact'!$Y$6","v":"BOFAS asbl"}]
[null,null,null,null,{"$f":"+'EC et TA5.FP3 Contact'!$AA$6","v":"Av. Jules Bordetlaan 166 b1"}]
[null,null,null,null,{"$f":"+\"B-\"&'EC et TA5.FP3 Contact'!$AB$6","v":"B-1140 Evere"}]
[null,null,null,null,{"$f":"+\"Tél: \"&'EC et TA5.FP3 Contact'!$AD$6","v":{"$error":"#N/A"}},{"$f":"+\"Fax: \"&'EC et TA5.FP3 Contact'!$AE$6","v":"Fax: 02 788 29 99"}]
[]
[null,"Fiche de projet Achilles 9: PROCEDURE D'URGENCE"]
[]
[null,"ADRESSE DU CHANTIER:"]
[null,{"$f":"+'EC et TA5.FP3 Contact'!$Y$2","v":""}]
[null,{"$f":"CONCATENATE('EC et TA5.FP3 Contact'!$AA$1, \" à \",'EC et TA5.FP3 Contact'!$AA$2)","v":" à "}]
[null,"Assistant-secouriste sur le chantier: "]
[null,null,"Service médical d'urgence",null,112,"En cas de blessure grave, indiquez:\n   ●  point de référence et nom de rue \n   ●  nature de la blessure\n   ●  si la victime respire\n   ●  si la victime a des pulsations\n   ●  nom société et nom propre\n   ●  Maintenez les environs dégagés\n   ●  informez votre société\nEn cas de blessure légère, informez votre société et attendez  \nEn cas de dépassement des valeurs limites d'exposition (TLV):\n   ●  écartez immédiatement la victime de la zone de danger \n   ●  consultez un médecin du travail"]
[]
[]
[]
[]
[]
[]
[null,"Médecins généralistes",null,"Adresse",null,"Numéro de téléphone"]
[]
[]
[]
[]
[null,null,"Pompiers",null,112,"En cas d'incendie, explosion, épandage de liquides dans l'environnement  \n  ●  cessez les travaux et informez votre entourage\n  ● téléphonez aux pompiers\n     - donnez point de référence et nom de rue\n     - indiquez la nature et l'envergure du problème  \n  ●  informez votre société et le coordinateur - réalisation \n  ●  essayez si possible d'éteindre l'incendie avec les moyens d'extinction présents \n  ●  attendez les services de secours \n\n"]
[null,null,"Police",null,112]
[null,"Notifications des incidents par le responsable de la société:"]
[null,"Tout incident/accident doit immédiatement être communiqué au coordinateur-réalisation."]
[null,"Les notifications légalement obligatoires à l’assureur légal, à l'inspection technique et au service externe "]
[null,"doivent être faites dans les délais prescrits."]
[null,"Remplissez et remettez la déclaration d'incident BOFAS au maître d'ouvrage. Conservez l'original dans le farde de chantier."]

{"sheet":"TA14 PV GC ","index":6,"n_rows":92,"n_cols":8,"rows_kept":92,"cut":false,"hidden":false,"merged":[[92,1,92,2],[92,3,92,4],[92,5,92,7],[92,8,92,9],[30,2,30,9],[75,2,75,9],[76,2,76,9],[77,2,77,9],[78,2,78,9],[79,2,79,9],[80,2,80,9],[72,2,72,9],[61,2,61,9],[62,2,62,9],[63,2,63,9],[64,2,64,9],[65,2,65,9],[66,2,66,9],[67,2,67,9],[68,2,68,9],[69,2,69,9],[70,2,70,9],[71,2,71,9],[60,2,60,9],[42,1,42,2],[42,3,42,4],[51,1,51,9],[54,1,54,2],[54,3,54,9],[55,1,55,2],[55,3,55,9],[57,2,57,9],[58,2,58,9],[59,2,59,9],[42,5,42,7],[42,8,42,9],[28,2,28,9],[29,2,29,9],[31,2,31,9],[32,2,32,9],[33,2,33,9],[0,1,0,9],[2,1,2,2],[2,3,2,5],[2,7,2,9],[3,1,3,2],[3,3,3,9],[4,1,4,2],[4,3,4,5],[4,7,4,9],[11,2,11,9],[12,2,12,9],[6,4,6,9],[6,1,6,3],[5,5,5,9],[5,1,5,4],[73,2,73,9],[74,2,74,9],[81,2,81,9],[82,2,82,9],[13,2,13,9],[14,2,14,9],[21,2,21,9],[22,2,22,9],[26,2,26,9],[27,2,27,9],[23,2,23,9],[24,2,24,9],[25,2,25,9],[19,2,19,9],[20,2,20,9],[7,8,7,9],[7,6,7,7],[7,4,7,5],[7,1,7,3],[15,2,15,9],[16,2,16,9],[17,2,17,9],[18,2,18,9],[83,2,83,9],[84,2,84,9]]}
[null,"PROCES-VERBAL DE RECEPTION PROVISOIRE GC"]
[]
[null,"Maître d'ouvrage",null,"BOFAS vzw",null,null,"N° dossier :",{"$f":"'EC et TA5.FP3 Contact'!C1","v":0}]
[null,"Nom de la station",null,{"$f":"'EC et TA5.FP3 Contact'!C2","v":0}]
[null,"Emplacement:",null,{"$f":"'EC et TA5.FP3 Contact'!E1","v":0},null,null,"à",{"$f":"'EC et TA5.FP3 Contact'!E2","v":0}]
[null,"Responsable du suivi environnemental:",null,null,null,{"$f":"'EC et TA5.FP3 Contact'!D9","v":0}]
[null,"Entrepreneur principal:",null,null,{"$f":"'EC et TA5.FP3 Contact'!Y12","v":" "}]
[null,"Début des travaux",null,null,null,null,"Fin des travaux"]
[]
[null,"Les défauts suivants ont été constatés concernant le projet ci-dessus:"]
[]
[]
[]
[]
[]
[]
[]
[]
[]
[]
[]
[]
[]
[]
[]
[]
[]
[]
[]
[]
[]
[]
[]
[]
[]
[null,"Ces défauts doivent être corrigés avant le _________________________"]
[]
[null,"Hormis les défauts susmentionnés, les travaux ont été exécutés conformément aux documents du projet. "]
[]
[]
[null,"Fait le : _______________________"]
[]
[null,"Le maître d'ouvrage",null,"L'Entrepreneur",null,"L'expert en environnement",null,"Propriétaire / Demandeur"]
[]
[]
[]
[]
[]
[]
[]
[]
[null,"PROCES-VERBAL DE RECEPTION PROVISOIRE GC (suite)"]
[]
[]
[null,"N° dossier:",null,{"$f":"H3","v":0}]
[null,"Nom de la station",null,{"$f":"D4","v":0}]
[]
[]
[]
[]
[]
[]
[]
[]
[]
[]
[]
[]
[]
[]
[]
[]
[]
[]
[]
[]
[]
[]
[]
[]
[]
[]
[]
[]
[]
[null,"Ces défauts doivent être corrigés avant le _________________________"]
[]
[null,"Hormis les défauts susmentionnés, les travaux ont été exécutés conformément aux documents du projet. "]
[]
[null,"Fait le : _______________________"]
[]
[null,"Le maître d'ouvrage",null,"L'Entrepreneur",null,"L'expert en environnement",null,"Propriétaire / Demandeur"]

{"sheet":"TA14 PV IS","index":7,"n_rows":92,"n_cols":8,"rows_kept":92,"cut":false,"hidden":false,"merged":[[92,3,92,4],[92,5,92,7],[92,8,92,9],[43,1,43,2],[43,3,43,4],[43,5,43,7],[43,8,43,9],[52,1,52,9],[59,2,59,9],[60,2,60,9],[61,2,61,9],[62,2,62,9],[63,2,63,9],[29,2,29,9],[30,2,30,9],[31,2,31,9],[32,2,32,9],[92,1,92,2],[56,1,56,2],[56,3,56,9],[55,1,55,2],[55,3,55,9],[58,2,58,9],[83,2,83,9],[84,2,84,9],[78,2,78,9],[79,2,79,9],[80,2,80,9],[81,2,81,9],[82,2,82,9],[0,1,0,9],[2,1,2,2],[2,3,2,5],[2,7,2,9],[3,1,3,2],[3,3,3,9],[4,1,4,2],[4,3,4,5],[4,7,4,9],[5,5,5,9],[6,1,6,3],[6,4,6,9],[5,1,5,4],[12,2,12,9],[13,2,13,9],[14,2,14,9],[7,1,7,3],[7,4,7,5],[7,6,7,7],[7,8,7,9],[11,2,11,9],[27,2,27,9],[26,2,26,9],[25,2,25,9],[17,2,17,9],[18,2,18,9],[19,2,19,9],[20,2,20,9],[21,2,21,9],[65,2,65,9],[66,2,66,9],[67,2,67,9],[15,2,15,9],[34,2,34,9],[33,2,33,9],[22,2,22,9],[23,2,23,9],[24,2,24,9],[28,2,28,9],[16,2,16,9],[74,2,74,9],[75,2,75,9],[76,2,76,9],[77,2,77,9],[69,2,69,9],[70,2,70,9],[71,2,71,9],[72,2,72,9],[73,2,73,9],[68,2,68,9],[64,2,64,9]]}
[null,"PROCES-VERBAL DE RECEPTION PROVISOIRE IS"]
[]
[null,"Maître d'ouvrage",null,"BOFAS asbl",null,null,"N° dossier :",{"$f":"'EC et TA5.FP3 Contact'!C1","v":0}]
[null,"Nom de la station",null,{"$f":"'EC et TA5.FP3 Contact'!C2","v":0}]
[null,"Emplacement:",null,{"$f":"'EC et TA5.FP3 Contact'!E1","v":0},null,null,"à",{"$f":"'EC et TA5.FP3 Contact'!E2","v":0}]
[null,"Responsable du suivi environnemental:",null,null,null,{"$f":"'EC et TA5.FP3 Contact'!D9","v":0}]
[null,"Entrepreneur principal:",null,null,{"$f":"'EC et TA5.FP3 Contact'!Y12","v":" "}]
[null,"Début des travaux",null,null,null,null,"Fin des travaux"]
[]
[null,"Les défauts suivants ont été constatés concernant le projet ci-dessus:"]
[]
[]
[]
[]
[]
[]
[]
[]
[]
[]
[]
[]
[]
[]
[]
[]
[]
[]
[]
[]
[]
[]
[]
[]
[]
[]
[null,"Ces défauts doivent être corrigés avant le _________________________"]
[]
[null,"Hormis les défauts susmentionnés, les travaux ont été exécutés conformément aux documents du projet. "]
[]
[]
[null,"Fait le : _______________________"]
[]
[null,"Le maître d'ouvrage",null,"L'Entrepreneur",null,"L'expert en environnement",null,"Propriétaire / Demandeur"]
[]
[]
[]
[]
[]
[]
[]
[]
[null,"PROCES-VERBAL DE RECEPTION PROVISOIRE GC (suite)"]
[]
[]
[null,"N° dossier:",null,{"$f":"H3","v":0}]
[null,"Nom de la station",null,{"$f":"D4","v":0}]
[]
[]
[]
[]
[]
[]
[]
[]
[]
[]
[]
[]
[]
[]
[]
[]
[]
[]
[]
[]
[]
[]
[]
[]
[]
[]
[]
[]
[null,"Ces défauts doivent être corrigés avant le _________________________"]
[]
[null,"Hormis les défauts susmentionnés, les travaux ont été exécutés conformément aux documents du projet. "]
[]
[null,"Fait le : _______________________"]
[]
[null,"Le maître d'ouvrage",null,"L'Entrepreneur",null,"L'expert en environnement",null,"Propriétaire / Demandeur"]

{"sheet":"TA II.9 Sécurité","index":8,"n_rows":14,"n_cols":9,"rows_kept":14,"cut":false,"hidden":true,"merged":[[12,6,13,6],[12,7,13,7],[12,1,13,1],[12,2,13,2],[12,3,13,3],[12,4,13,4],[12,5,13,5],[8,5,8,7],[9,5,9,7],[10,5,10,7],[4,5,4,7],[5,5,5,7],[6,5,6,7],[7,5,7,7]]}
[null,"Chantier : ",{"$f":"CONCATENATE('EC et TA5.FP3 Contact'!$Y$2,\", \",'EC et TA5.FP3 Contact'!$AA$1,\" à \",'EC et TA5.FP3 Contact'!$AA$2,\"\")","v":",  à "}]
[]
[null,"Liste visite de sécurité n° :",null,"dd.    /    /2020"]
[]
[null,null,"Activité","Nom société","Personne de contact","e-mail"]
[null,null,"Entrepreneur principal travaux GC",{"$f":"+'EC et TA5.FP3 Contact'!$Y$12","v":" "},{"$f":"+'EC et TA5.FP3 Contact'!$Z$12","v":0},{"$f":"+'EC et TA5.FP3 Contact'!$AF$12","v":0}]
[null,null,"Maître d'ouvrage",{"$f":"+'EC et TA5.FP3 Contact'!$Y$6","v":"BOFAS asbl"},{"$f":"+'EC et TA5.FP3 Contact'!$Z$6","v":""},{"$f":"+'EC et TA5.FP3 Contact'!$AF$6","v":{"$error":"#N/A"}}]
[null,null,"Suivi environnemental",{"$f":"+'EC et TA5.FP3 Contact'!$Y$11","v":""},{"$f":"+'EC et TA5.FP3 Contact'!$Z$11","v":0},{"$f":"+'EC et TA5.FP3 Contact'!$AF$11","v":0}]
[]
[null,null,"Direction technique",{"$f":"+'EC et TA5.FP3 Contact'!$Y$7","v":"BOFAS asbl"},{"$f":"+'EC et TA5.FP3 Contact'!$Z$7","v":"Erik Goolaerts"},{"$f":"+'EC et TA5.FP3 Contact'!$AF$7","v":"erik.goolaerts@bofas.be"}]
[null,null,"Coordinateur sécurité réalisation",{"$f":"+'EC et TA5.FP3 Contact'!$Y$15","v":"BOFAS asbl"},{"$f":"+'EC et TA5.FP3 Contact'!$Z$15","v":""},{"$f":"+'EC et TA5.FP3 Contact'!$AF$15","v":{"$error":"#N/A"}}]
[]
["N°","Date du constat","Infractions & Constats","Mesures proposées","Entrepreneur responsable","Délai    solution","Etat","Date\nrésolution","Remarques"]
[null,null,null,null,null,"Termijn oplossing"]

{"sheet":"histlog","index":9,"n_rows":16,"n_cols":5,"rows_kept":16,"cut":false,"hidden":true,"merged":[]}
["versie","naam","goedgekeurd","datum","opmerking"]
["3.00","LV","EG","2020-02-18","version 3  BOFAS 3"]
["2.02","KVD","GM","2020-02-18","bijsturing eerste Batch perceel 1"]
["2.00","JDW","EG","2019-12-06","nazicht lay-out en referenties"]
["1.02","KDV","JDW","2019-12-04","Pf3.Personne de contact EP sur chantier; PF1 en 2 - T9202 verwijderd en werkvergunning in werfmap ipv per e-mail, handtekening aanvrager toegevoegd bij PV (TA14 PV)"]
["1.00","EG","EG","2019-09-25","Version 1 BOFAS 3"]
["0.3","PB, YVM",null,"2019-09-20","petites corrections contacts FR"]
[0.3,"LV",null,"2019-09-18","referentie PID opnieuw aangepast"]
["v0,2","LV",null,"2019-09-17","lay-out bofas 3 en nazicht referenties"]
[null,null,null,null,"T5225 wordt T1240"]
[null,"KVD","JDW","2019-09-09","aanpassingen aan lijst contactpersonen en kwaliteitsplan conform OVAM"]
[5,null,null,"2011-04-12"]
[4,null,null,"2008-11-28"]
[3]
[2]
[1]